[Event "Titled Tuesday Blitz September 21 2021"]
[White "Assaubayeva, Bibisara"]
[Black "Beulen, Marcel"]
[WhiteFideId "13708694"]
[BlackFideId "1001450"]
[WhiteElo "2232"]
[BlackElo "2414"]
[Result "1-0"]
[Round "04"]
[TimeControl "180+1"]
[Date "2021.09.21"]
[WhiteClock "0:00:33"]
[BlackClock "0:00:20"]

1. d4 {[%clk 0:03:00]}  d5 {[%clk 0:02:59]} 2. c4 {[%clk 0:02:59]}  c6 {[%clk 0:03:00]} 3. Nf3 {[%clk 0:03:00]}  Nf6 {[%clk 0:03:00]} 4. e3 {[%clk 0:02:58]}  Bf5 {[%clk 0:02:59]} 5. Nc3 {[%clk 0:02:56]}  a6 {[%clk 0:02:59]} 6. Bd3 {[%clk 0:02:54]}  Bg6 {[%clk 0:02:57]} 7. O-O {[%clk 0:02:53]}  e6 {[%clk 0:02:57]} 8. Re1 {[%clk 0:02:50]}  Nbd7 {[%clk 0:02:56]} 9. e4 {[%clk 0:02:48]}  dxe4 {[%clk 0:02:56]} 10. Nxe4 {[%clk 0:02:49]}  Be7 {[%clk 0:02:56]} 11. Bf4 {[%clk 0:02:44]}  Nxe4 {[%clk 0:02:54]} 12. Bxe4 {[%clk 0:02:43]}  O-O {[%clk 0:02:54]} 13. Qd2 {[%clk 0:02:38]}  Bxe4 {[%clk 0:02:44]} 14. Rxe4 {[%clk 0:02:37]}  c5 {[%clk 0:02:44]} 15. Rd1 {[%clk 0:02:33]}  Nf6 {[%clk 0:02:37]} 16. Re3 {[%clk 0:02:27]}  cxd4 {[%clk 0:02:36]} 17. Nxd4 {[%clk 0:02:25]}  Rc8 {[%clk 0:02:20]} 18. Rd3 {[%clk 0:02:16]}  Qb6 {[%clk 0:02:18]} 19. b3 {[%clk 0:02:14]}  Rfd8 {[%clk 0:02:18]} 20. Qe2 {[%clk 0:02:03]}  h6 {[%clk 0:02:15]} 21. h3 {[%clk 0:02:02]}  Rd7 {[%clk 0:02:08]} 22. Nf5 {[%clk 0:01:57]}  Qd8 {[%clk 0:01:19]} 23. Rxd7 {[%clk 0:01:39]}  Nxd7 {[%clk 0:01:18]} 24. Qg4 {[%clk 0:01:21]}  exf5 {[%clk 0:01:12]} 25. Qxf5 {[%clk 0:01:20]}  Bf6 {[%clk 0:00:39]} 26. Qxd7 {[%clk 0:01:16]}  Qxd7 {[%clk 0:00:36]} 27. Rxd7 {[%clk 0:01:15]}  b5 {[%clk 0:00:37]} 28. Bc7 {[%clk 0:00:56]}  bxc4 {[%clk 0:00:32]} 29. bxc4 {[%clk 0:00:56]}  Re8 {[%clk 0:00:32]} 30. c5 {[%clk 0:00:46]}  Re1+ {[%clk 0:00:26]} 31. Kh2 {[%clk 0:00:45]}  Rc1 {[%clk 0:00:25]} 32. Bd6 {[%clk 0:00:39]}  Rc2 {[%clk 0:00:24]} 33. Ra7 {[%clk 0:00:34]}  Rxa2 {[%clk 0:00:23]} 34. c6 {[%clk 0:00:33]}  Kh7 {[%clk 0:00:20]} 35. c7 {[%clk 0:00:33]}  Rc2 {[%clk 0:00:20]} 36. Ra8 {[%clk 0:00:33]} 1-0


[Site "https://www.chess.com"]

[Event "Titled Tuesday Blitz September 21 2021"]
[White "Bazeev, German"]
[Black "Sharma, Dinesh K."]
[WhiteFideId "24119350"]
[BlackFideId "5004110"]
[WhiteElo "2462"]
[BlackElo "2392"]
[Result "1/2-1/2"]
[Round "04"]
[TimeControl "180+1"]
[Date "2021.09.21"]
[WhiteClock "0:00:08"]
[BlackClock "0:00:14"]

1. d4 {[%clk 0:03:00]}  d5 {[%clk 0:02:58]} 2. Nf3 {[%clk 0:03:01]}  Nf6 {[%clk 0:02:56]} 3. c4 {[%clk 0:03:02]}  c6 {[%clk 0:02:56]} 4. Qc2 {[%clk 0:03:02]}  dxc4 {[%clk 0:02:54]} 5. e4 {[%clk 0:03:02]}  b5 {[%clk 0:02:53]} 6. b3 {[%clk 0:03:03]}  cxb3 {[%clk 0:02:52]} 7. axb3 {[%clk 0:03:03]}  e6 {[%clk 0:02:52]} 8. Bd2 {[%clk 0:03:04]}  Be7 {[%clk 0:02:51]} 9. Ba5 {[%clk 0:03:03]}  Qd7 {[%clk 0:02:49]} 10. Nbd2 {[%clk 0:03:03]}  O-O {[%clk 0:02:47]} 11. Bd3 {[%clk 0:03:03]}  h6 {[%clk 0:02:46]} 12. b4 {[%clk 0:03:02]}  Na6 {[%clk 0:02:37]} 13. Qb2 {[%clk 0:02:57]}  Bb7 {[%clk 0:02:26]} 14. O-O {[%clk 0:02:55]}  Bd8 {[%clk 0:02:16]} 15. Ne5 {[%clk 0:02:52]}  Qe7 {[%clk 0:02:13]} 16. Bxd8 {[%clk 0:02:32]}  Rfxd8 {[%clk 0:02:10]} 17. Rxa6 {[%clk 0:02:32]}  Bxa6 {[%clk 0:02:04]} 18. Nxc6 {[%clk 0:02:32]}  Qd7 {[%clk 0:02:00]} 19. Nxd8 {[%clk 0:02:32]}  Rxd8 {[%clk 0:02:00]} 20. Nb3 {[%clk 0:02:32]}  Qe7 {[%clk 0:01:53]} 21. Nc5 {[%clk 0:02:29]}  Bb7 {[%clk 0:01:51]} 22. f3 {[%clk 0:02:25]}  Bc6 {[%clk 0:01:48]} 23. Ra1 {[%clk 0:02:22]}  Qc7 {[%clk 0:01:42]} 24. Bf1 {[%clk 0:02:20]}  Nd7 {[%clk 0:01:40]} 25. Qc3 {[%clk 0:02:17]}  Nb6 {[%clk 0:01:34]} 26. Nb3 {[%clk 0:02:06]}  Qd6 {[%clk 0:01:32]} 27. Qc5 {[%clk 0:02:02]}  Qd7 {[%clk 0:01:31]} 28. Rc1 {[%clk 0:01:58]}  Rc8 {[%clk 0:01:27]} 29. Qe5 {[%clk 0:01:51]}  f6 {[%clk 0:01:10]} 30. Qg3 {[%clk 0:01:44]}  Qe7 {[%clk 0:00:38]} 31. Qe1 {[%clk 0:01:39]}  Be8 {[%clk 0:00:23]} 32. Rxc8 {[%clk 0:01:37]}  Nxc8 {[%clk 0:00:24]} 33. Qc3 {[%clk 0:01:37]}  Nb6 {[%clk 0:00:23]} 34. Qc5 {[%clk 0:01:37]}  Qd7 {[%clk 0:00:24]} 35. Qc3 {[%clk 0:01:20]}  Na4 {[%clk 0:00:23]} 36. Qe3 {[%clk 0:01:18]}  Qd6 {[%clk 0:00:23]} 37. Nc5 {[%clk 0:01:18]}  Nb2 {[%clk 0:00:19]} 38. Qc3 {[%clk 0:01:11]}  Na4 {[%clk 0:00:19]} 39. Qe3 {[%clk 0:01:06]}  Nb2 {[%clk 0:00:19]} 40. Be2 {[%clk 0:01:03]}  Kf8 {[%clk 0:00:18]} 41. g3 {[%clk 0:01:01]}  Nc4 {[%clk 0:00:17]} 42. Bxc4 {[%clk 0:00:59]}  bxc4 {[%clk 0:00:18]} 43. Kf2 {[%clk 0:00:59]}  Bb5 {[%clk 0:00:19]} 44. Qc3 {[%clk 0:00:59]}  Ke7 {[%clk 0:00:18]} 45. Ke3 {[%clk 0:00:58]}  Qb8 {[%clk 0:00:17]} 46. Qa3 {[%clk 0:00:58]}  h5 {[%clk 0:00:17]} 47. Kd2 {[%clk 0:00:46]}  h4 {[%clk 0:00:17]} 48. f4 {[%clk 0:00:47]}  hxg3 {[%clk 0:00:17]} 49. hxg3 {[%clk 0:00:48]}  a6 {[%clk 0:00:17]} 50. Kc3 {[%clk 0:00:47]}  Qh8 {[%clk 0:00:17]} 51. Qa5 {[%clk 0:00:47]}  Qh2 {[%clk 0:00:16]} 52. Qc7+ {[%clk 0:00:47]}  Ke8 {[%clk 0:00:16]} 53. Qc8+ {[%clk 0:00:46]}  Kf7 {[%clk 0:00:16]} 54. Qxe6+ {[%clk 0:00:46]}  Kf8 {[%clk 0:00:16]} 55. Qc8+ {[%clk 0:00:41]}  Kf7 {[%clk 0:00:16]} 56. Qc7+ {[%clk 0:00:35]}  Ke8 {[%clk 0:00:15]} 57. Qc8+ {[%clk 0:00:23]}  Kf7 {[%clk 0:00:14]} 58. Qe6+ {[%clk 0:00:22]}  Kf8 {[%clk 0:00:15]} 59. Qg4 {[%clk 0:00:23]}  Qf2 {[%clk 0:00:13]} 60. Qc8+ {[%clk 0:00:07]}  Kf7 {[%clk 0:00:13]} 61. Qe6+ {[%clk 0:00:07]}  Kf8 {[%clk 0:00:13]} 62. Qc8+ {[%clk 0:00:07]}  Kf7 {[%clk 0:00:14]} 63. Qe6+ {[%clk 0:00:08]}  Kf8 {[%clk 0:00:14]} 64. Qc8+ {[%clk 0:00:08]} 1/2-1/2


[Site "https://www.chess.com"]

[Event "Titled Tuesday Blitz September 21 2021"]
[White "Begunov, Konstantin"]
[Black "Piesik, Piotr"]
[WhiteFideId "4118510"]
[BlackFideId "1136194"]
[WhiteElo "2262"]
[BlackElo "2365"]
[Result "1-0"]
[Round "04"]
[TimeControl "180+1"]
[Date "2021.09.21"]
[WhiteClock "0:00:06"]
[BlackClock "0:00:18"]

1. d4 {[%clk 0:02:18]}  c5 {[%clk 0:02:59]} 2. dxc5 {[%clk 0:02:18]}  e6 {[%clk 0:02:59]} 3. Nc3 {[%clk 0:02:18]}  Bxc5 {[%clk 0:02:59]} 4. Ne4 {[%clk 0:02:19]}  Nf6 {[%clk 0:02:59]} 5. Nxc5 {[%clk 0:02:19]}  Qa5+ {[%clk 0:02:59]} 6. c3 {[%clk 0:02:17]}  Qxc5 {[%clk 0:02:59]} 7. Qd4 {[%clk 0:02:09]}  Qxd4 {[%clk 0:02:59]} 8. cxd4 {[%clk 0:02:10]}  Nc6 {[%clk 0:02:59]} 9. e3 {[%clk 0:02:08]}  Nb4 {[%clk 0:02:55]} 10. Kd1 {[%clk 0:02:07]}  Ne4 {[%clk 0:02:53]} 11. Nh3 {[%clk 0:02:06]}  d5 {[%clk 0:02:51]} 12. f3 {[%clk 0:02:04]}  Nd6 {[%clk 0:02:51]} 13. Bd2 {[%clk 0:02:03]}  Nc6 {[%clk 0:02:51]} 14. Bd3 {[%clk 0:02:00]}  Bd7 {[%clk 0:02:50]} 15. Ke2 {[%clk 0:01:58]}  Ke7 {[%clk 0:02:49]} 16. Rhc1 {[%clk 0:01:57]}  Rhc8 {[%clk 0:02:49]} 17. f4 {[%clk 0:01:52]}  h6 {[%clk 0:02:43]} 18. Ng1 {[%clk 0:01:52]}  f6 {[%clk 0:02:40]} 19. Nf3 {[%clk 0:01:50]}  Be8 {[%clk 0:02:40]} 20. Rc2 {[%clk 0:01:46]}  Ne4 {[%clk 0:02:32]} 21. Rac1 {[%clk 0:01:37]}  g5 {[%clk 0:02:22]} 22. Bb4+ {[%clk 0:01:09]}  Kf7 {[%clk 0:02:09]} 23. g4 {[%clk 0:00:55]}  Bd7 {[%clk 0:01:50]} 24. Be1 {[%clk 0:00:52]}  Ne7 {[%clk 0:01:48]} 25. h4 {[%clk 0:00:43]}  gxf4 {[%clk 0:01:45]} 26. exf4 {[%clk 0:00:43]}  Ng6 {[%clk 0:01:38]} 27. Ke3 {[%clk 0:00:38]}  Nd6 {[%clk 0:01:26]} 28. Bb4 {[%clk 0:00:31]}  Ne8 {[%clk 0:01:08]} 29. g5 {[%clk 0:00:31]}  hxg5 {[%clk 0:01:07]} 30. hxg5 {[%clk 0:00:31]}  Rxc2 {[%clk 0:01:01]} 31. Rxc2 {[%clk 0:00:31]}  Bc6 {[%clk 0:01:01]} 32. gxf6 {[%clk 0:00:27]}  Nxf6 {[%clk 0:00:59]} 33. Bxg6+ {[%clk 0:00:16]}  Kxg6 {[%clk 0:01:00]} 34. Ne5+ {[%clk 0:00:16]}  Kf5 {[%clk 0:01:00]} 35. Nxc6 {[%clk 0:00:17]}  bxc6 {[%clk 0:01:00]} 36. Rxc6 {[%clk 0:00:18]}  Rh8 {[%clk 0:00:58]} 37. Rc7 {[%clk 0:00:14]}  Rh3+ {[%clk 0:00:56]} 38. Kd2 {[%clk 0:00:13]}  Ne4+ {[%clk 0:00:52]} 39. Kc2 {[%clk 0:00:13]}  Rh2+ {[%clk 0:00:50]} 40. Kb3 {[%clk 0:00:13]}  Kxf4 {[%clk 0:00:44]} 41. Rxa7 {[%clk 0:00:13]}  Ke3 {[%clk 0:00:43]} 42. Bc3 {[%clk 0:00:13]}  Rh8 {[%clk 0:00:36]} 43. Re7 {[%clk 0:00:12]}  Rb8+ {[%clk 0:00:35]} 44. Kc2 {[%clk 0:00:12]}  Rb6 {[%clk 0:00:35]} 45. a4 {[%clk 0:00:11]}  Ng3 {[%clk 0:00:31]} 46. a5 {[%clk 0:00:10]}  Rc6 {[%clk 0:00:31]} 47. Rb7 {[%clk 0:00:08]}  Nf5 {[%clk 0:00:30]} 48. Rb6 {[%clk 0:00:09]}  Nxd4+ {[%clk 0:00:29]} 49. Kb1 {[%clk 0:00:08]}  Rc5 {[%clk 0:00:20]} 50. Bxd4+ {[%clk 0:00:07]}  Kxd4 {[%clk 0:00:21]} 51. a6 {[%clk 0:00:06]}  Ra5 {[%clk 0:00:21]} 52. b4 {[%clk 0:00:07]}  Ra4 {[%clk 0:00:21]} 53. b5 {[%clk 0:00:07]}  e5 {[%clk 0:00:20]} 54. Rb7 {[%clk 0:00:07]}  e4 {[%clk 0:00:21]} 55. a7 {[%clk 0:00:08]}  e3 {[%clk 0:00:21]} 56. b6 {[%clk 0:00:08]}  e2 {[%clk 0:00:21]} 57. Re7 {[%clk 0:00:08]}  Kd3 {[%clk 0:00:21]} 58. Kb2 {[%clk 0:00:08]}  Kd2 {[%clk 0:00:19]} 59. Kb3 {[%clk 0:00:08]}  Ra6 {[%clk 0:00:19]} 60. b7 {[%clk 0:00:04]}  Rxa7 {[%clk 0:00:20]} 61. Rxe2+ {[%clk 0:00:04]}  Kxe2 {[%clk 0:00:19]} 62. b8=Q {[%clk 0:00:05]}  Ra1 {[%clk 0:00:18]} 63. Qe5+ {[%clk 0:00:05]}  Kd3 {[%clk 0:00:18]} 64. Qxa1 {[%clk 0:00:06]} 1-0


[Site "https://www.chess.com"]

[Event "Titled Tuesday Blitz September 21 2021"]
[White "Boros, Denes"]
[Black "Coto Mederos, Michel"]
[WhiteFideId "722340"]
[BlackFideId "3508528"]
[WhiteElo "2464"]
[BlackElo "2427"]
[Result "0-1"]
[Round "04"]
[TimeControl "180+1"]
[Date "2021.09.21"]
[WhiteClock "0:00:14"]
[BlackClock "0:00:05"]

1. d4 {[%clk 0:03:00]}  d5 {[%clk 0:02:59]} 2. Nc3 {[%clk 0:03:01]}  Nf6 {[%clk 0:02:57]} 3. Bf4 {[%clk 0:03:01]}  Bf5 {[%clk 0:02:51]} 4. Nf3 {[%clk 0:03:01]}  e6 {[%clk 0:02:49]} 5. e3 {[%clk 0:03:02]}  Bd6 {[%clk 0:02:48]} 6. Ne5 {[%clk 0:03:02]}  O-O {[%clk 0:02:41]} 7. f3 {[%clk 0:02:54]}  Bxe5 {[%clk 0:02:19]} 8. Bxe5 {[%clk 0:02:46]}  Nfd7 {[%clk 0:02:19]} 9. Bf4 {[%clk 0:02:44]}  c5 {[%clk 0:02:14]} 10. Qd2 {[%clk 0:02:39]}  Nc6 {[%clk 0:02:07]} 11. g4 {[%clk 0:02:27]}  Bg6 {[%clk 0:02:01]} 12. h4 {[%clk 0:02:27]}  f6 {[%clk 0:01:49]} 13. h5 {[%clk 0:02:23]}  Bf7 {[%clk 0:01:49]} 14. h6 {[%clk 0:02:14]}  g6 {[%clk 0:01:44]} 15. dxc5 {[%clk 0:01:59]}  e5 {[%clk 0:01:36]} 16. Bg3 {[%clk 0:01:58]}  Nxc5 {[%clk 0:01:36]} 17. O-O-O {[%clk 0:01:49]}  d4 {[%clk 0:01:30]} 18. exd4 {[%clk 0:01:49]}  exd4 {[%clk 0:01:24]} 19. Ne4 {[%clk 0:01:47]}  Nxe4 {[%clk 0:01:13]} 20. fxe4 {[%clk 0:01:48]}  Qe7 {[%clk 0:01:13]} 21. Kb1 {[%clk 0:01:37]}  Rac8 {[%clk 0:00:46]} 22. Bd3 {[%clk 0:01:19]}  Qe6 {[%clk 0:00:39]} 23. b3 {[%clk 0:01:19]}  Qe7 {[%clk 0:00:39]} 24. Qf2 {[%clk 0:01:04]}  Be6 {[%clk 0:00:38]} 25. Rhe1 {[%clk 0:00:58]}  Qa3 {[%clk 0:00:37]} 26. Re2 {[%clk 0:00:27]}  Nb4 {[%clk 0:00:34]} 27. Qxd4 {[%clk 0:00:27]}  Qxa2+ {[%clk 0:00:30]} 28. Kc1 {[%clk 0:00:28]}  Rfd8 {[%clk 0:00:28]} 29. Qxb4 {[%clk 0:00:18]}  Bxb3 {[%clk 0:00:25]} 30. Kd2 {[%clk 0:00:06]}  Bxc2 {[%clk 0:00:21]} 31. Ke3 {[%clk 0:00:04]}  Qb3 {[%clk 0:00:07]} 32. Qxb3+ {[%clk 0:00:04]}  Bxb3 {[%clk 0:00:08]} 33. Rdd2 {[%clk 0:00:05]}  Rc3 {[%clk 0:00:07]} 34. e5 {[%clk 0:00:05]}  Bc4 {[%clk 0:00:08]} 35. exf6 {[%clk 0:00:05]}  Rcxd3+ {[%clk 0:00:08]} 36. Rxd3 {[%clk 0:00:05]}  Rxd3+ {[%clk 0:00:09]} 37. Kf2 {[%clk 0:00:06]}  Rxg3 {[%clk 0:00:10]} 38. Re8+ {[%clk 0:00:06]}  Kf7 {[%clk 0:00:10]} 39. Rc8 {[%clk 0:00:07]}  Rc3 {[%clk 0:00:09]} 40. g5 {[%clk 0:00:06]}  Rc2+ {[%clk 0:00:08]} 41. Ke3 {[%clk 0:00:06]}  Bb3 {[%clk 0:00:08]} 42. Rb8 {[%clk 0:00:06]}  Rc7 {[%clk 0:00:06]} 43. Rh8 {[%clk 0:00:06]}  Ke6 {[%clk 0:00:06]} 44. Kd4 {[%clk 0:00:07]}  Kf5 {[%clk 0:00:06]} 45. Rg8 {[%clk 0:00:08]}  Kxg5 {[%clk 0:00:06]} 46. Rg7 {[%clk 0:00:08]}  Bf7 {[%clk 0:00:05]} 47. Rxh7 {[%clk 0:00:08]}  Kxf6 {[%clk 0:00:06]} 48. Rh8 {[%clk 0:00:08]}  g5 {[%clk 0:00:07]} 49. Rd8 {[%clk 0:00:07]}  Kg6 {[%clk 0:00:07]} 50. Rh8 {[%clk 0:00:07]}  Rd7+ {[%clk 0:00:05]} 51. Ke5 {[%clk 0:00:08]}  Re7+ {[%clk 0:00:06]} 52. Kd6 {[%clk 0:00:08]}  Re1 {[%clk 0:00:05]} 53. h7 {[%clk 0:00:07]}  Rh1 {[%clk 0:00:04]} 54. Rf8 {[%clk 0:00:07]}  Rxh7 {[%clk 0:00:03]} 55. Rb8 {[%clk 0:00:08]}  Rh6 {[%clk 0:00:03]} 56. Ke5 {[%clk 0:00:09]}  Rh1 {[%clk 0:00:02]} 57. Kd4 {[%clk 0:00:10]}  Re1 {[%clk 0:00:02]} 58. Kd3 {[%clk 0:00:10]}  g4 {[%clk 0:00:03]} 59. Rxb7 {[%clk 0:00:10]}  g3 {[%clk 0:00:03]} 60. Kd2 {[%clk 0:00:11]}  Re5 {[%clk 0:00:03]} 61. Rb3 {[%clk 0:00:11]}  Bxb3 {[%clk 0:00:02]} 62. Kd3 {[%clk 0:00:11]}  Bd5 {[%clk 0:00:03]} 63. Kd4 {[%clk 0:00:12]}  Kf5 {[%clk 0:00:03]} 64. Kc3 {[%clk 0:00:13]}  g2 {[%clk 0:00:04]} 65. Kb4 {[%clk 0:00:14]}  g1=Q {[%clk 0:00:05]} 66. Ka5 {[%clk 0:00:15]}  Qc5+ {[%clk 0:00:05]} 67. Ka6 {[%clk 0:00:14]}  Qb6# {[%clk 0:00:05]} 0-1


[Site "https://www.chess.com"]

[Event "Titled Tuesday Blitz September 21 2021"]
[White "Budrewicz, Krzysztof"]
[Black "Onyshchuk, Volodymyr"]
[WhiteFideId "1127950"]
[BlackFideId "14114038"]
[WhiteElo "2242"]
[BlackElo "2603"]
[Result "1/2-1/2"]
[Round "04"]
[TimeControl "180+1"]
[Date "2021.09.21"]
[WhiteClock "0:00:28"]
[BlackClock "0:00:35"]

1. d4 {[%clk 0:03:00]}  d6 {[%clk 0:02:59]} 2. c4 {[%clk 0:03:00]}  e5 {[%clk 0:02:59]} 3. Nf3 {[%clk 0:03:00]}  e4 {[%clk 0:02:59]} 4. Nfd2 {[%clk 0:03:00]}  f5 {[%clk 0:02:59]} 5. Nc3 {[%clk 0:03:00]}  Nf6 {[%clk 0:02:59]} 6. Nb3 {[%clk 0:03:00]}  Be6 {[%clk 0:02:50]} 7. d5 {[%clk 0:02:58]}  Bf7 {[%clk 0:02:46]} 8. Nd4 {[%clk 0:02:58]}  g6 {[%clk 0:02:43]} 9. h4 {[%clk 0:02:57]}  c5 {[%clk 0:02:42]} 10. dxc6 {[%clk 0:02:54]}  Nxc6 {[%clk 0:02:41]} 11. Nxc6 {[%clk 0:02:49]}  bxc6 {[%clk 0:02:41]} 12. Qa4 {[%clk 0:02:49]}  Qd7 {[%clk 0:02:33]} 13. Bg5 {[%clk 0:02:48]}  Bg7 {[%clk 0:02:29]} 14. e3 {[%clk 0:02:47]}  Rb8 {[%clk 0:02:25]} 15. Qc2 {[%clk 0:02:45]}  Ng4 {[%clk 0:02:23]} 16. Rd1 {[%clk 0:02:38]}  Be5 {[%clk 0:02:02]} 17. Be2 {[%clk 0:02:27]}  h6 {[%clk 0:02:01]} 18. Bf4 {[%clk 0:02:27]}  Bxf4 {[%clk 0:02:01]} 19. exf4 {[%clk 0:02:28]}  Nf6 {[%clk 0:02:01]} 20. Qd2 {[%clk 0:02:23]}  Rd8 {[%clk 0:01:56]} 21. Qd4 {[%clk 0:02:23]}  Qe7 {[%clk 0:01:53]} 22. O-O {[%clk 0:02:22]}  O-O {[%clk 0:01:50]} 23. g3 {[%clk 0:02:21]}  c5 {[%clk 0:01:42]} 24. Qd2 {[%clk 0:02:20]}  h5 {[%clk 0:01:37]} 25. Rfe1 {[%clk 0:02:19]}  Rd7 {[%clk 0:01:34]} 26. b3 {[%clk 0:02:18]}  Rfd8 {[%clk 0:01:34]} 27. Qe3 {[%clk 0:02:06]}  Kg7 {[%clk 0:01:23]} 28. Rd2 {[%clk 0:02:06]}  d5 {[%clk 0:01:21]} 29. cxd5 {[%clk 0:02:06]}  Bxd5 {[%clk 0:01:20]} 30. Red1 {[%clk 0:02:04]}  Be6 {[%clk 0:01:19]} 31. Rxd7 {[%clk 0:02:03]}  Rxd7 {[%clk 0:01:19]} 32. Rxd7 {[%clk 0:02:02]}  Nxd7 {[%clk 0:01:19]} 33. Na4 {[%clk 0:01:56]}  Qd6 {[%clk 0:01:17]} 34. Qc3+ {[%clk 0:01:56]}  Qd4 {[%clk 0:01:17]} 35. Kf1 {[%clk 0:01:47]}  Kf7 {[%clk 0:01:13]} 36. Qc1 {[%clk 0:01:25]}  Ke7 {[%clk 0:01:11]} 37. Ke1 {[%clk 0:01:25]}  Kd6 {[%clk 0:01:09]} 38. Nc3 {[%clk 0:01:24]}  Ke7 {[%clk 0:01:02]} 39. Nb5 {[%clk 0:01:22]}  Qb4+ {[%clk 0:01:01]} 40. Qd2 {[%clk 0:01:15]}  a5 {[%clk 0:00:57]} 41. Kd1 {[%clk 0:01:06]}  Qxd2+ {[%clk 0:00:55]} 42. Kxd2 {[%clk 0:01:07]}  Nb6 {[%clk 0:00:55]} 43. Nc3 {[%clk 0:01:00]}  Kd6 {[%clk 0:00:56]} 44. Bb5 {[%clk 0:00:59]}  Bf7 {[%clk 0:00:51]} 45. Ke3 {[%clk 0:00:58]}  c4 {[%clk 0:00:47]} 46. bxc4 {[%clk 0:00:53]}  Kc5 {[%clk 0:00:47]} 47. Na4+ {[%clk 0:00:45]}  Nxa4 {[%clk 0:00:45]} 48. Bxa4 {[%clk 0:00:45]}  Bxc4 {[%clk 0:00:42]} 49. a3 {[%clk 0:00:43]}  Bf7 {[%clk 0:00:41]} 50. Kd2 {[%clk 0:00:33]}  Kd4 {[%clk 0:00:41]} 51. Bb5 {[%clk 0:00:30]}  Kc5 {[%clk 0:00:40]} 52. Bd7 {[%clk 0:00:30]}  Kc4 {[%clk 0:00:39]} 53. Ba4 {[%clk 0:00:30]}  Kd4 {[%clk 0:00:38]} 54. Bb5 {[%clk 0:00:29]}  Kc5 {[%clk 0:00:37]} 55. Ba4 {[%clk 0:00:27]}  Kc4 {[%clk 0:00:37]} 56. Kc2 {[%clk 0:00:27]}  Kd4 {[%clk 0:00:35]} 57. Kd2 {[%clk 0:00:28]}  Kc4 {[%clk 0:00:35]} 58. Kc2 {[%clk 0:00:27]}  Kd4 {[%clk 0:00:35]} 59. Kd2 {[%clk 0:00:28]}  Kc4 {[%clk 0:00:35]} 1/2-1/2


[Site "https://www.chess.com"]

[Event "Titled Tuesday Blitz September 21 2021"]
[White "Buscar, Michael"]
[Black "Martinez Alcantara, Jose Eduardo"]
[WhiteFideId "2603616"]
[BlackFideId "3805662"]
[WhiteElo "2010"]
[BlackElo "2690"]
[Result "0-1"]
[Round "04"]
[TimeControl "180+1"]
[Date "2021.09.21"]
[WhiteClock "0:00:09"]
[BlackClock "0:01:32"]

1. d4 {[%clk 0:02:58]}  Nf6 {[%clk 0:02:59]} 2. c4 {[%clk 0:02:57]}  e6 {[%clk 0:03:00]} 3. Nf3 {[%clk 0:02:57]}  Bb4+ {[%clk 0:03:00]} 4. Bd2 {[%clk 0:02:55]}  Qe7 {[%clk 0:03:00]} 5. g3 {[%clk 0:02:54]}  Bxd2+ {[%clk 0:03:00]} 6. Nbxd2 {[%clk 0:02:54]}  d6 {[%clk 0:03:00]} 7. Bg2 {[%clk 0:02:54]}  e5 {[%clk 0:03:01]} 8. dxe5 {[%clk 0:02:47]}  dxe5 {[%clk 0:03:01]} 9. Qc2 {[%clk 0:02:47]}  Nc6 {[%clk 0:02:59]} 10. O-O {[%clk 0:02:44]}  e4 {[%clk 0:02:43]} 11. Ne1 {[%clk 0:02:38]}  e3 {[%clk 0:02:43]} 12. Bxc6+ {[%clk 0:02:28]}  bxc6 {[%clk 0:02:42]} 13. Ndf3 {[%clk 0:02:25]}  Bh3 {[%clk 0:02:36]} 14. Nd3 {[%clk 0:02:19]}  Bxf1 {[%clk 0:02:35]} 15. Rxf1 {[%clk 0:02:17]}  exf2+ {[%clk 0:02:35]} 16. Nxf2 {[%clk 0:02:17]}  O-O {[%clk 0:02:34]} 17. b3 {[%clk 0:02:15]}  Rfe8 {[%clk 0:02:34]} 18. Re1 {[%clk 0:02:12]}  Rad8 {[%clk 0:02:33]} 19. Kg2 {[%clk 0:02:02]}  Qe3 {[%clk 0:02:32]} 20. Nd1 {[%clk 0:01:56]}  Qe4 {[%clk 0:02:24]} 21. Qb2 {[%clk 0:01:52]}  Ng4 {[%clk 0:02:22]} 22. Nf2 {[%clk 0:01:39]}  Ne3+ {[%clk 0:02:15]} 23. Kg1 {[%clk 0:01:40]}  Qc2 {[%clk 0:02:15]} 24. Qa1 {[%clk 0:01:17]}  Qf5 {[%clk 0:02:15]} 25. Qc3 {[%clk 0:01:14]}  c5 {[%clk 0:01:59]} 26. Rc1 {[%clk 0:01:02]}  h5 {[%clk 0:01:53]} 27. Nh4 {[%clk 0:00:49]}  Qe6 {[%clk 0:01:47]} 28. Re1 {[%clk 0:00:46]}  Qc6 {[%clk 0:01:43]} 29. Nf3 {[%clk 0:00:46]}  Ng4 {[%clk 0:01:40]} 30. Nh4 {[%clk 0:00:15]}  Re3 {[%clk 0:01:36]} 31. Qb2 {[%clk 0:00:14]}  Qe6 {[%clk 0:01:34]} 32. Nxg4 {[%clk 0:00:11]}  Qxg4 {[%clk 0:01:33]} 33. Ng2 {[%clk 0:00:09]}  Re4 {[%clk 0:01:32]} 34. Nf4 {[%clk 0:00:09]}  Rxf4 {[%clk 0:01:32]} 0-1


[Site "https://www.chess.com"]

[Event "Titled Tuesday Blitz September 21 2021"]
[White "Coelho, Ramyres Santana"]
[Black "Karpeshov, Oleg"]
[WhiteFideId "2120690"]
[BlackFideId "4106814"]
[WhiteElo "1888"]
[BlackElo "2354"]
[Result "0-1"]
[Round "04"]
[TimeControl "180+1"]
[Date "2021.09.21"]
[WhiteClock "0:00:05"]
[BlackClock "0:01:33"]

1. e4 {[%clk 0:03:00]}  e6 {[%clk 0:02:58]} 2. d4 {[%clk 0:02:58]}  d5 {[%clk 0:02:58]} 3. Nc3 {[%clk 0:02:59]}  Bb4 {[%clk 0:02:57]} 4. e5 {[%clk 0:02:59]}  b6 {[%clk 0:02:56]} 5. a3 {[%clk 0:02:58]}  Bf8 {[%clk 0:02:56]} 6. Qg4 {[%clk 0:02:57]}  Ne7 {[%clk 0:02:52]} 7. f4 {[%clk 0:02:57]}  Qd7 {[%clk 0:02:51]} 8. Nf3 {[%clk 0:02:56]}  Ba6 {[%clk 0:02:50]} 9. Bxa6 {[%clk 0:02:55]}  Nxa6 {[%clk 0:02:49]} 10. O-O {[%clk 0:02:55]}  Nb8 {[%clk 0:02:47]} 11. Be3 {[%clk 0:02:49]}  Nbc6 {[%clk 0:02:47]} 12. Bf2 {[%clk 0:02:48]}  h5 {[%clk 0:02:40]} 13. Qh3 {[%clk 0:02:44]}  Rh6 {[%clk 0:02:38]} 14. Ng5 {[%clk 0:02:38]}  Nf5 {[%clk 0:02:36]} 15. Rad1 {[%clk 0:02:34]}  Be7 {[%clk 0:02:35]} 16. Qd3 {[%clk 0:02:22]}  f6 {[%clk 0:02:33]} 17. exf6 {[%clk 0:02:10]}  gxf6 {[%clk 0:02:33]} 18. Nf3 {[%clk 0:01:43]}  O-O-O {[%clk 0:02:18]} 19. Qa6+ {[%clk 0:01:40]}  Kb8 {[%clk 0:02:18]} 20. Nb5 {[%clk 0:01:38]}  Nd6 {[%clk 0:02:13]} 21. Nxd6 {[%clk 0:01:36]}  Bxd6 {[%clk 0:02:12]} 22. g3 {[%clk 0:01:34]}  Ne7 {[%clk 0:02:11]} 23. Qe2 {[%clk 0:01:31]}  Nf5 {[%clk 0:02:10]} 24. Rfe1 {[%clk 0:01:30]}  Re8 {[%clk 0:02:09]} 25. Kh1 {[%clk 0:01:25]}  Rhh8 {[%clk 0:02:09]} 26. c4 {[%clk 0:01:22]}  c6 {[%clk 0:02:07]} 27. b4 {[%clk 0:01:19]}  h4 {[%clk 0:02:06]} 28. g4 {[%clk 0:01:16]}  Ng3+ {[%clk 0:02:03]} 29. Bxg3 {[%clk 0:01:09]}  hxg3 {[%clk 0:02:03]} 30. Kg2 {[%clk 0:01:03]}  gxh2 {[%clk 0:02:01]} 31. c5 {[%clk 0:00:36]}  Bc7 {[%clk 0:01:58]} 32. cxb6 {[%clk 0:00:33]}  axb6 {[%clk 0:01:58]} 33. a4 {[%clk 0:00:28]}  Bxf4 {[%clk 0:01:49]} 34. a5 {[%clk 0:00:27]}  b5 {[%clk 0:01:48]} 35. a6 {[%clk 0:00:25]}  e5 {[%clk 0:01:48]} 36. a7+ {[%clk 0:00:24]}  Ka8 {[%clk 0:01:47]} 37. dxe5 {[%clk 0:00:24]}  Qxg4+ {[%clk 0:01:46]} 38. Kh1 {[%clk 0:00:22]}  fxe5 {[%clk 0:01:45]} 39. Rf1 {[%clk 0:00:11]}  Rhg8 {[%clk 0:01:41]} 40. Qc2 {[%clk 0:00:09]}  Qg6 {[%clk 0:01:34]} 41. Qc3 {[%clk 0:00:05]}  Qg2# {[%clk 0:01:33]} 0-1


[Site "https://www.chess.com"]